Workbook

Sheet Ark1
A1: Oversigt over kontraktforløb i Langeland Ærø Indkøbsforening:
A3: Indtastninger: | D3: Omkostninger:
A4: Købssum: | B4: 150000 | D4: Provision: | E4: =IF((G5<1500),1500,(IF((G5>4500),4500,G5))) -> 3000 | G4: 2
A5: Afdragstid år: | B5: 5 | D5: Udbetaling: | E5: =(B4*(B8/100)) -> 30000 | G5: =B4*G4/100 -> 3000
A6: Rentesats: | B6: 1.5 | D6: Moms: | E6: =(B4*0.25)+(E4*0.25) -> 38250
A7: Terminer pr. år: | B7: 4 | D7: Betaling ved underskrift: | E7: =SUM(E4:E6) -> 71250
A8: Udbetaling %: | B8: 20
A11: Afdragsoversigt:
B12: Rente | C12: Afdrag | D12: Ydelse | E12: Restgæld
A13: Lån: | E13: =B4-E5 -> 120000 | G13: 1
A14: 1. termin | B14: =IF((E13<>""),(E13*$B$6/100/$B$7),"") -> 450 | C14: =IF((E13>0),($E$13/(B$5*B$7)),0) -> 6000 | D14: =IF((E13>0),(C14+B14),"") -> 6450 | E14: =IF((E13-C14)>0,(E13-C14),0) -> 114000 | G14: 2
A15: 2. termin | B15: 427.5 | C15: 6000 | D15: =IF((E14>0),(C15+B15),"") -> 6427.5 | E15: =IF((E14-C15)>0,(E14-C15),0) -> 108000 | G15: 3
A16: 3. termin | B16: 405 | C16: 6000 | D16: 6405 | E16: 102000 | G16: 4
A17: 4. termin | B17: 382.5 | C17: 6000 | D17: 6382.5 | E17: 96000 | G17: 5
A18: 5. termin | B18: 360 | C18: 6000 | D18: 6360 | E18: 90000 | G18: 6
A19: 6. termin | B19: 337.5 | C19: 6000 | D19: 6337.5 | E19: 84000 | G19: 7
A20: 7. termin | B20: 315 | C20: 6000 | D20: 6315 | E20: 78000
A21: 8. termin | B21: 292.5 | C21: 6000 | D21: 6292.5 | E21: 72000
A22: 9. termin | B22: 270 | C22: 6000 | D22: 6270 | E22: 66000 | G22: 1.5
A23: 10. termin | B23: 247.5 | C23: 6000 | D23: 6247.5 | E23: 60000
A24: 11. termin | B24: 225 | C24: 6000 | D24: 6225 | E24: 54000
A25: 12. termin | B25: 202.5 | C25: 6000 | D25: 6202.5 | E25: 48000 | G25: 4
A26: 13. termin | B26: 180 | C26: 6000 | D26: 6180 | E26: 42000
A27: 14. termin | B27: 157.5 | C27: 6000 | D27: 6157.5 | E27: 36000
A28: 15. termin | B28: 135 | C28: 6000 | D28: 6135 | E28: 30000 | G28: 20
A29: 16. termin | B29: 112.5 | C29: 6000 | D29: 6112.5 | E29: 24000 | G29: 25
A30: 17. termin | B30: 90 | C30: 6000 | D30: 6090 | E30: 18000
A31: 18. termin | B31: 67.5 | C31: 6000 | D31: 6067.5 | E31: 12000
A32: 19. termin | B32: 45 | C32: 6000 | D32: 6045 | E32: 6000
A33: 20. termin | B33: 22.5 | C33: 6000 | D33: 6022.5 | E33: 0
A34: 21. termin | B34: 0 | C34: 0 | E34: 0
A35: 22. termin | B35: 0 | C35: 0 | E35: 0
A36: 23. termin | B36: 0 | C36: 0 | E36: 0
A37: 24. termin | B37: 0 | C37: 0 | D37: =IF((E36>0),(C37+B37),"") ->  | E37: =IF((E36-C37)>0,(E36-C37),0) -> 0
A38: 25. termin | B38: 0 | C38: 0 | E38: 0
A39: 26. termin | B39: 0 | C39: 0 | E39: 0
A40: 27. termin | B40: 0 | C40: 0 | E40: 0
A41: 28. termin | B41: 0 | C41: 0 | D41: =IF((E40>0),(C41+B41),"") ->  | E41: =IF((E40-C41)>0,(E40-C41),0) -> 0
A43: Samlet betaling incl. provision: | D43: =SUM(D14:D42)+E4 -> 127725
A44: Samlede omkostninger incl. provision: | D44: =D43-E13 -> 7725
